fUSD/lending_fUSD_20250105
["ID","MTS","AMOUNT","RATE_DAILY","PERIOD"]
[347708621,1736076633135,-500.0,8.219e-05,2]
[347708622,1736076633144,-500.0,8.219e-05,2]
[347708623,1736076633154,-724.24,8.219e-05,2]
[347708624,1736076633163,-637.65,8.219e-05,2]
[347708625,1736076633173,-500.0,8.219e-05,2]
[347708626,1736076633183,-509.7,8.219e-05,2]
[347708627,1736076633192,-500.0,8.219e-05,2]
[347708628,1736076633202,-500.0,8.219e-05,2]
[347708629,1736076633212,-500.0,8.219e-05,2]
[347708630,1736076633221,-500.0,8.219e-05,2]
[347708631,1736076633235,-500.0,8.219e-05,2]
[347708632,1736076633245,-500.0,8.219e-05,2]
[347708633,1736076633254,-500.0,8.219e-05,2]
[347708634,1736076633264,-738.62,8.219e-05,2]
[347708635,1736076633273,-500.0,8.219e-05,2]
[347708636,1736076633283,-500.0,8.219e-05,2]
[347708637,1736076633293,-500.0,8.219e-05,2]
[347708638,1736076633302,-500.0,8.219e-05,2]
[347708639,1736076633311,-500.0,8.219e-05,2]
[347708640,1736076633321,-500.0,8.219e-05,2]
[347708641,1736076633331,-500.0,8.219e-05,2]
[347708642,1736076633341,-500.0,8.219e-05,2]
[347708643,1736076633351,-566.25,8.219e-05,2]
[347708644,1736076633360,-500.0,8.219e-05,2]
[347708645,1736076633370,-500.0,8.219e-05,2]
[347708646,1736076633381,-500.0,8.219e-05,2]
[347708647,1736076633391,-500.0,8.219e-05,2]
[347708648,1736076633401,-500.0,8.219e-05,2]
[347708649,1736076633410,-500.0,8.219e-05,2]
[347708650,1736076633420,-500.0,8.219e-05,2]
[347708651,1736076633429,-500.0,8.219e-05,2]
[347708652,1736076633439,-730.26,8.219e-05,2]
[347708653,1736076633448,-500.0,8.219e-05,2]
[347708654,1736076633458,-500.0,8.219e-05,2]
[347708655,1736076633468,-500.0,8.219e-05,2]
[347708656,1736076633477,-504.6303026,8.219e-05,2]
[347708657,1736076633488,-500.0,8.219e-05,2]
[347708658,1736076633497,-500.0,8.219e-05,2]
[347708659,1736076633510,-500.0,8.219e-05,2]
[347708660,1736076633520,-500.0,8.219e-05,2]
[347708661,1736076633530,-500.0,8.219e-05,2]
[347708662,1736076633539,-500.0,8.219e-05,2]
[347708663,1736076633549,-500.0,8.219e-05,2]
[347708664,1736076633558,-500.0,8.219e-05,2]
[347708665,1736076633567,-500.0,8.219e-05,2]
[347708666,1736076633576,-500.0,8.219e-05,2]
[347708667,1736076633587,-526.81,8.219e-05,2]
[347708668,1736076633598,-500.0,8.219e-05,2]
[347708669,1736076633607,-500.0,8.219e-05,2]
[347708670,1736076633617,-500.0,8.219e-05,2]
[347708671,1736076633627,-500.0,8.219e-05,2]
[347708672,1736076633636,-500.0,8.219e-05,2]
[347708673,1736076633646,-788.22,8.219e-05,2]
[347708674,1736076633656,-500.0,8.219e-05,2]
[347708675,1736076633665,-500.0,8.219e-05,2]
[347708676,1736076633675,-500.0,8.219e-05,2]
[347708677,1736076633685,-500.0,8.219e-05,2]
[347708678,1736076633694,-500.0,8.219e-05,2]
[347708679,1736076633703,-500.0,8.219e-05,2]
[347708680,1736076633712,-1000.0,8.219e-05,2]
[347708681,1736076633722,-503.2972928,8.219e-05,2]
[347708682,1736076633731,-500.0,8.219e-05,2]
[347708683,1736076633741,-500.0,8.219e-05,2]
[347708684,1736076633751,-500.0,8.219e-05,2]
[347708685,1736076633760,-500.0,8.219e-05,2]
[347708686,1736076633770,-500.0,8.219e-05,2]
[347708687,1736076633779,-500.0,8.219e-05,2]
[347708688,1736076633789,-500.0,8.219e-05,2]
[347708689,1736076633800,-500.0,8.219e-05,2]
[347708690,1736076633809,-500.0,8.219e-05,2]
[347708691,1736076633819,-500.0,8.219e-05,2]
[347708692,1736076633829,-957.51,8.219e-05,2]
[347708693,1736076633839,-500.0,8.219e-05,2]
[347708694,1736076633848,-500.0,8.219e-05,2]
[347708695,1736076633858,-500.0,8.219e-05,2]
[347708696,1736076633867,-500.0,8.219e-05,2]
[347708697,1736076633877,-500.0,8.219e-05,2]
[347708698,1736076633886,-170.97167542,8.219e-05,2]
[347708699,1736076633895,-500.0,8.219e-05,2]
[347708700,1736076633905,-500.0,8.219e-05,2]
[347708701,1736076633914,-500.0,8.219e-05,2]
[347708702,1736076633924,-500.0,8.219e-05,2]
[347708703,1736076633933,-500.0,8.219e-05,2]
[347708704,1736076633943,-500.0,8.219e-05,2]
[347708705,1736076633952,-500.0,8.219e-05,2]
[347708706,1736076633962,-500.0,8.219e-05,2]
[347708707,1736076633971,-500.0,8.219e-05,2]
[347708708,1736076633981,-500.0,8.219e-05,2]
[347708709,1736076633991,-500.0,8.219e-05,2]
[347708710,1736076634000,-500.0,8.219e-05,2]
[347708711,1736076634011,-529.16,8.219e-05,2]
[347708712,1736076634020,-614.9096006,8.219e-05,2]
[347708713,1736076634029,-681.29,8.219e-05,2]
[347708714,1736076634039,-500.0,8.219e-05,2]
[347708715,1736076634048,-500.0,8.219e-05,2]
[347708716,1736076634058,-577.45,8.219e-05,2]
[347708717,1736076634067,-500.0,8.219e-05,2]
[347708718,1736076634077,-500.0,8.219e-05,2]
[347708719,1736076634086,-500.0,8.219e-05,2]
[347708720,1736076634095,-500.0,8.219e-05,2]
[347708721,1736076634105,-500.0,8.219e-05,2]
[347708722,1736076634114,-500.0,8.219e-05,2]
[347708723,1736076634125,-500.0,8.219e-05,2]
[347708724,1736076634136,-500.0,8.219e-05,2]
[347708725,1736076634146,-500.0,8.219e-05,2]
[347708726,1736076634156,-500.0,8.219e-05,2]
[347708727,1736076634165,-500.0,8.219e-05,2]
[347708728,1736076634175,-500.0,8.219e-05,2]
[347708729,1736076634184,-500.0,8.219e-05,2]
[347708730,1736076634194,-500.0,8.219e-05,2]
[347708731,1736076634203,-500.0,8.219e-05,2]
[347708732,1736076634212,-500.0,8.219e-05,2]
[347708733,1736076634222,-500.0,8.219e-05,2]
[347708734,1736076634232,-500.0,8.219e-05,2]
[347708735,1736076634242,-500.0,8.219e-05,2]
[347708736,1736076634251,-500.0,8.219e-05,2]
[347708737,1736076634261,-1213.92,8.219e-05,2]
[347708738,1736076634270,-500.0,8.219e-05,2]
[347708739,1736076634279,-500.0,8.219e-05,2]
[347708740,1736076634289,-640.69,8.219e-05,2]
[347708741,1736076634299,-500.0,8.219e-05,2]
[347708742,1736076634308,-500.0,8.219e-05,2]
[347708743,1736076634317,-500.0,8.219e-05,2]
[347708744,1736076634326,-500.0,8.219e-05,2]
[347708745,1736076634335,-500.0,8.219e-05,2]
[347708746,1736076634345,-500.0,8.219e-05,2]
[347708747,1736076634354,-500.0,8.219e-05,2]
[347708748,1736076634364,-500.0,8.219e-05,2]
[347708749,1736076634374,-660.79,8.219e-05,2]
[347708750,1736076634385,-500.0,8.219e-05,2]
[347708751,1736076634395,-500.0,8.219e-05,2]
[347708752,1736076634405,-500.0,8.219e-05,2]
[347708753,1736076634414,-500.0,8.219e-05,2]
[347708754,1736076634424,-561.99,8.219e-05,2]
[347708755,1736076634434,-500.0,8.219e-05,2]
[347708756,1736076634443,-500.0,8.219e-05,2]
[347708757,1736076634453,-500.0,8.219e-05,2]
[347708758,1736076634462,-381.14519113,8.219e-05,2]
[347708759,1736076634472,-500.0,8.219e-05,2]
[347708760,1736076634482,-500.0,8.219e-05,2]
[347708761,1736076634492,-500.0,8.219e-05,2]
[347708762,1736076634501,-500.0,8.219e-05,2]
[347708763,1736076634514,-500.0,8.219e-05,2]
[347708764,1736076634523,-500.0,8.219e-05,2]
[347708765,1736076634532,-500.0,8.219e-05,2]
[347708766,1736076634543,-500.0,8.219e-05,2]
[347708767,1736076634552,-500.0,8.219e-05,2]
[347708768,1736076634561,-1326.19,8.219e-05,2]
[347708769,1736076634571,-500.0,8.219e-05,2]
[347708770,1736076634580,-500.0,8.219e-05,2]
[347708771,1736076634589,-500.0,8.219e-05,2]
[347708772,1736076634599,-500.0,8.219e-05,2]
[347708773,1736076634608,-500.0,8.219e-05,2]
[347708774,1736076634617,-500.0,8.219e-05,2]
[347708775,1736076634626,-542.94140953,8.219e-05,2]
[347708776,1736076634635,-500.0,8.219e-05,2]
[347708777,1736076634645,-500.0,8.219e-05,2]
[347708778,1736076634654,-4084.24337266,8.219e-05,2]
[347708779,1736076634663,-500.0,8.219e-05,2]
[347708780,1736076634672,-816.38,8.219e-05,2]
[347708781,1736076634681,-500.0,8.219e-05,2]
[347708782,1736076634690,-640.6,8.219e-05,2]
[347708783,1736076634699,-500.0,8.219e-05,2]
[347708784,1736076634708,-500.0,8.219e-05,2]
[347708785,1736076634717,-500.0,8.219e-05,2]
[347708786,1736076634726,-500.0,8.219e-05,2]
[347708787,1736076634735,-500.0,8.219e-05,2]
[347708788,1736076634744,-500.0,8.219e-05,2]
[347708789,1736076634753,-261.46102002,8.219e-05,2]
[347708790,1736076634762,-1289.07,8.219e-05,2]
[347708791,1736076634771,-500.0,8.219e-05,2]
[347708792,1736076634780,-500.0,8.219e-05,2]
[347708793,1736076634789,-601.33,8.219e-05,2]
[347708794,1736076634798,-500.0,8.219e-05,2]
[347708795,1736076634807,-500.0,8.219e-05,2]
[347708796,1736076634816,-502.04521891,8.219e-05,2]
[347708797,1736076634826,-500.0,8.219e-05,2]
[347708798,1736076634834,-500.0,8.219e-05,2]
[347708799,1736076634843,-500.0,8.219e-05,2]
[347708800,1736076634852,-2326.77,8.219e-05,2]
[347708801,1736076634863,-500.0,8.219e-05,2]
[347708802,1736076634874,-649.25285843,8.219e-05,2]
[347708803,1736076634884,-788.81,8.219e-05,2]
[347708804,1736076634893,-500.0,8.219e-05,2]
[347708805,1736076634902,-500.0,8.219e-05,2]
[347708806,1736076634914,-500.0,8.219e-05,2]
[347708807,1736076634925,-1211.06,8.219e-05,2]
[347708808,1736076634936,-500.0,8.219e-05,2]
[347708809,1736076634945,-500.0,8.219e-05,2]
[347708810,1736076634954,-500.0,8.219e-05,2]
[347708811,1736076634965,-1278.06,8.219e-05,2]
[347708812,1736076634975,-500.0,8.219e-05,2]
[347708813,1736076634985,-694.83,8.219e-05,2]
[347708814,1736076634994,-1063.9,8.219e-05,2]
[347708815,1736076635002,-1368.3,8.219e-05,2]
[347708816,1736076635011,-500.0,8.219e-05,2]
[347708817,1736076635020,-2537.86,8.219e-05,2]
[347708818,1736076635029,-536.36,8.219e-05,2]
[347708819,1736076635038,-737.23,8.219e-05,2]
[347708820,1736076635047,-297.02663164,8.219e-05,2]
[347708821,1736076635057,-500.0,8.219e-05,2]
[347708822,1736076635066,-500.0,8.219e-05,2]
[347708823,1736076635075,-758.55,8.219e-05,2]
[347708824,1736076635084,-500.0,8.219e-05,2]
[347708825,1736076635093,-500.0,8.219e-05,2]
[347708826,1736076635102,-500.0,8.219e-05,2]
[347708827,1736076635111,-500.0,8.219e-05,2]
[347708828,1736076635120,-500.0,8.219e-05,2]
[347708829,1736076635129,-513.17,8.219e-05,2]
[347708830,1736076635138,-500.0,8.219e-05,2]
[347708831,1736076635147,-500.0,8.219e-05,2]
[347708832,1736076635156,-500.0,8.219e-05,2]
[347708833,1736076635165,-500.0,8.219e-05,2]
[347708834,1736076635174,-500.0,8.219e-05,2]
[347708835,1736076635183,-500.0,8.219e-05,2]
[347708836,1736076635192,-500.0,8.219e-05,2]
[347708837,1736076635201,-1162.18,8.219e-05,2]
[347708838,1736076635210,-500.0,8.219e-05,2]
[347708839,1736076635220,-500.0,8.219e-05,2]
[347708840,1736076635229,-500.0,8.219e-05,2]
[347708841,1736076635238,-1431.72,8.219e-05,2]
[347708842,1736076635248,-500.0,8.219e-05,2]
[347708843,1736076635257,-500.0,8.219e-05,2]
[347708844,1736076635266,-1706.71,8.219e-05,2]
[347708845,1736076635275,-500.0,8.219e-05,2]
[347708846,1736076635284,-500.0,8.219e-05,2]
[347708847,1736076635294,-500.0,8.219e-05,2]
[347708848,1736076635303,-500.0,8.219e-05,2]
[347708849,1736076635313,-535.23,8.219e-05,2]
[347708850,1736076635322,-500.0,8.219e-05,2]
[347708851,1736076635331,-506.58515974,8.219e-05,2]
[347708852,1736076635340,-500.0,8.219e-05,2]
[347708853,1736076635350,-500.0,8.219e-05,2]
[347708854,1736076635359,-825.63,8.219e-05,2]
[347708855,1736076635368,-704.66,8.219e-05,2]
[347708856,1736076635378,-500.0,8.219e-05,2]
[347708857,1736076635387,-2699.32,8.219e-05,2]
[347708858,1736076635396,-500.0,8.219e-05,2]
[347708859,1736076635406,-602.7,8.219e-05,2]
[347708860,1736076635415,-500.0,8.219e-05,2]
[347708861,1736076635424,-500.0,8.219e-05,2]
[347708862,1736076635434,-500.0,8.219e-05,2]
[347708863,1736076635443,-1673.76,8.219e-05,2]
[347708864,1736076635452,-500.0,8.219e-05,2]
[347708865,1736076635462,-872.87,8.219e-05,2]
[347708866,1736076635471,-500.0,8.219e-05,2]
[347708867,1736076635481,-865.52,8.219e-05,2]
[347708868,1736076635490,-500.0,8.219e-05,2]
[347708869,1736076635501,-2700.57,8.219e-05,2]
[347708870,1736076635514,-1352.04,8.219e-05,2]
[347708871,1736076635523,-699.36,8.219e-05,2]
[347708872,1736076635532,-500.0,8.219e-05,2]
[347708873,1736076635542,-500.0,8.219e-05,2]
[347708874,1736076635551,-500.0,8.219e-05,2]
[347708875,1736076635561,-500.0,8.219e-05,2]
[347708876,1736076635570,-500.0,8.219e-05,2]
[347708877,1736076635580,-1106.23,8.219e-05,2]
[347708878,1736076635590,-577.44,8.219e-05,2]
[347708879,1736076635599,-977.55,8.219e-05,2]
[347708880,1736076635608,-520.59,8.219e-05,2]
[347708881,1736076635618,-500.0,8.219e-05,2]
[347708882,1736076635628,-500.0,8.219e-05,2]
[347708883,1736076635638,-500.0,8.219e-05,2]
[347708884,1736076635647,-500.0,8.219e-05,2]
[347708885,1736076635656,-1914.19,8.219e-05,2]
[347708886,1736076635664,-1734.47,8.219e-05,2]
[347708887,1736076635673,-500.0,8.219e-05,2]
[347708888,1736076635683,-600.09,8.219e-05,2]
[347708889,1736076635692,-500.0,8.219e-05,2]
[347708890,1736076635705,-500.0,8.219e-05,2]
[347708891,1736076635717,-510.32728826,8.219e-05,2]
[347708892,1736076635727,-876.88,8.219e-05,2]
[347708893,1736076635737,-500.0,8.219e-05,2]
[347708894,1736076635747,-500.0,8.219e-05,2]
[347708895,1736076635757,-500.0,8.219e-05,2]
[347708896,1736076635766,-500.0,8.219e-05,2]
[347708897,1736076635775,-500.0,8.219e-05,2]
[347708898,1736076635785,-865.64,8.219e-05,2]
[347708899,1736076635795,-500.0,8.219e-05,2]
[347708900,1736076635804,-500.0,8.219e-05,2]
[347708901,1736076635814,-485.7264739,8.219e-05,2]
[347708902,1736076635823,-500.0,8.219e-05,2]
[347708903,1736076635833,-500.0,8.219e-05,2]
[347708904,1736076635842,-731.69,8.219e-05,2]
[347708905,1736076635851,-500.0,8.219e-05,2]
[347708906,1736076635861,-500.0,8.219e-05,2]
[347708907,1736076635870,-500.0,8.219e-05,2]
[347708908,1736076635880,-163.54903608,8.219e-05,2]
[347708909,1736076635890,-500.0,8.219e-05,2]
[347708910,1736076635899,-500.0,8.219e-05,2]
[347708911,1736076635908,-500.0,8.219e-05,2]
[347708912,1736076635919,-500.0,8.219e-05,2]
[347708913,1736076635928,-500.0,8.219e-05,2]
[347708914,1736076635938,-580.28,8.219e-05,2]
[347708915,1736076635948,-529.56,8.219e-05,2]
[347708916,1736076635957,-500.0,8.219e-05,2]
[347708917,1736076635966,-500.0,8.219e-05,2]
[347708918,1736076635975,-500.0,8.219e-05,2]
[347708919,1736076635984,-500.0,8.219e-05,2]
[347708920,1736076635994,-694.57,8.219e-05,2]
[347708921,1736076636005,-1853.7,8.219e-05,2]
[347708922,1736076636216,-500.0,8.219e-05,2]
[347708923,1736076636226,-988.58,8.219e-05,2]
[347708924,1736076636236,-681.33,8.219e-05,2]
[347708925,1736076636246,-500.0,8.219e-05,2]
[347708926,1736076636255,-500.0,8.219e-05,2]
[347708927,1736076636266,-1976.44,8.219e-05,2]
[347708928,1736076636276,-500.0,8.219e-05,2]
[347708929,1736076636286,-591.11,8.219e-05,2]
[347708930,1736076636295,-500.0,8.219e-05,2]
[347708931,1736076636305,-500.0,8.219e-05,2]
[347708932,1736076636314,-500.0,8.219e-05,2]
[347708933,1736076636324,-500.0,8.219e-05,2]
[347708934,1736076636333,-500.0,8.219e-05,2]
[347708935,1736076636343,-732.16,8.219e-05,2]
[347708936,1736076636353,-500.0,8.219e-05,2]
[347708937,1736076636363,-805.68,8.219e-05,2]
[347708938,1736076636373,-500.0,8.219e-05,2]
[347708939,1736076636383,-500.0,8.219e-05,2]
[347708940,1736076636393,-1068.56,8.219e-05,2]
[347708941,1736076636402,-500.0,8.219e-05,2]
[347708942,1736076636411,-527.7,8.219e-05,2]
[347708943,1736076636421,-500.0,8.219e-05,2]
[347708944,1736076636432,-1126.8,8.219e-05,2]
[347708945,1736076636442,-1497.15,8.219e-05,2]
[347708946,1736076636452,-504.28847674,8.219e-05,2]
[347708947,1736076636461,-552.25,8.219e-05,2]
[347708948,1736076636473,-1890.23,8.219e-05,2]
[347708949,1736076636483,-853.95,8.219e-05,2]
[347708950,1736076636493,-501.68291369,8.219e-05,2]
[347708951,1736076636506,-500.0,8.219e-05,2]
[347708952,1736076636515,-500.0,8.219e-05,2]
[347708953,1736076636527,-617.77,8.219e-05,2]
[347708954,1736076636537,-1545.9,8.219e-05,2]
[347708955,1736076636550,-500.0,8.219e-05,2]
[347708956,1736076636560,-500.0,8.219e-05,2]
[347708957,1736076636569,-500.0,8.219e-05,2]
[347708958,1736076636579,-500.0,8.219e-05,2]
[347708959,1736076636590,-761.95,8.219e-05,2]
[347708960,1736076636601,-500.0,8.219e-05,2]
[347708961,1736076636610,-500.0,8.219e-05,2]
[347708962,1736076636620,-1301.13,8.219e-05,2]
[347708963,1736076636630,-500.0,8.219e-05,2]
[347708964,1736076636640,-3870.26,8.219e-05,2]
[347708965,1736076636650,-596.3,8.219e-05,2]
[347708966,1736076636660,-656.38,8.219e-05,2]
[347708967,1736076636669,-500.0,8.219e-05,2]
[347708968,1736076636678,-500.0,8.219e-05,2]
[347708969,1736076636688,-607.28,8.219e-05,2]
[347708970,1736076636697,-601.28,8.219e-05,2]
[347708971,1736076636706,-1197.33,8.219e-05,2]
[347708972,1736076636716,-500.0,8.219e-05,2]
[347708973,1736076636725,-500.0,8.219e-05,2]
[347708974,1736076636735,-3285.56,8.219e-05,2]
[347708975,1736076636744,-500.0,8.219e-05,2]
[347708976,1736076636753,-500.0,8.219e-05,2]
[347708977,1736076636763,-655.16,8.219e-05,2]
[347708978,1736076636772,-581.31,8.219e-05,2]
[347708979,1736076636782,-500.0,8.219e-05,2]
[347708980,1736076636791,-518.93,8.219e-05,2]
[347708981,1736076636801,-500.0,8.219e-05,2]
[347708982,1736076636810,-584.59,8.219e-05,2]
[347708983,1736076636820,-500.0,8.219e-05,2]
[347708984,1736076636830,-500.0,8.219e-05,2]
[347708985,1736076636840,-534.84,8.219e-05,2]
[347708986,1736076636850,-2323.52,8.219e-05,2]
[347708987,1736076636860,-732.58,8.219e-05,2]
[347708988,1736076636870,-500.0,8.219e-05,2]
[347708989,1736076636880,-500.0,8.219e-05,2]
[347708990,1736076636889,-500.0,8.219e-05,2]
[347708991,1736076636899,-500.0,8.219e-05,2]
[347708992,1736076636909,-500.0,8.219e-05,2]
[347708993,1736076636918,-500.0,8.219e-05,2]
[347708994,1736076636928,-1017.19,8.219e-05,2]
[347708995,1736076636937,-500.0,8.219e-05,2]
[347708996,1736076636946,-500.0,8.219e-05,2]
[347708997,1736076636955,-764.71,8.219e-05,2]
[347708998,1736076636964,-500.0,8.219e-05,2]
[347708999,1736076636973,-695.42,8.219e-05,2]
[347709000,1736076636982,-5299.64,8.219e-05,2]
[347709001,1736076636991,-881.06,8.219e-05,2]
[347709002,1736076637000,-647.35,8.219e-05,2]
[347709003,1736076637009,-2167.22,8.219e-05,2]
[347709004,1736076637019,-800.0,8.219e-05,2]
[347709005,1736076637029,-500.0,8.219e-05,2]
[347709006,1736076637039,-5135.6,8.219e-05,2]
[347709007,1736076637049,-500.0,8.219e-05,2]
[347709008,1736076637058,-500.0,8.219e-05,2]
[347709009,1736076637068,-500.0,8.219e-05,2]
[347709010,1736076637077,-500.0,8.219e-05,2]
[347709011,1736076637087,-500.0,8.219e-05,2]
[347709012,1736076637098,-500.0,8.219e-05,2]
[347709013,1736076637108,-500.0,8.219e-05,2]
[347709014,1736076637117,-500.0,8.219e-05,2]
[347709015,1736076637127,-500.0,8.219e-05,2]
[347709016,1736076637138,-1392.32,8.219e-05,2]
[347709017,1736076637147,-804.12,8.219e-05,2]
[347709018,1736076637157,-500.0,8.219e-05,2]
[347709019,1736076637167,-1033.91,8.219e-05,2]
[347709020,1736076637176,-500.0,8.219e-05,2]
[347709021,1736076637186,-500.0,8.219e-05,2]
[347709022,1736076637196,-756.85,8.219e-05,2]
[347709023,1736076637205,-500.0,8.219e-05,2]
[347709024,1736076637215,-500.0,8.219e-05,2]
[347709025,1736076637225,-500.0,8.219e-05,2]
[347709026,1736076637235,-652.05,8.219e-05,2]
[347709027,1736076637245,-500.0,8.219e-05,2]
[347709028,1736076637255,-500.0,8.219e-05,2]
[347709029,1736076637265,-3155.83,8.219e-05,2]
[347709030,1736076637274,-500.0,8.219e-05,2]
[347709031,1736076637284,-1085.24,8.219e-05,2]
[347709032,1736076637294,-938.7,8.219e-05,2]
[347709033,1736076637304,-500.0,8.219e-05,2]
[347709034,1736076637313,-500.0,8.219e-05,2]
[347709035,1736076637323,-1215.77,8.219e-05,2]
[347709036,1736076637333,-500.0,8.219e-05,2]
[347709037,1736076637342,-3948.78,8.219e-05,2]
[347709038,1736076637352,-500.0,8.219e-05,2]
[347709039,1736076637361,-887.75,8.219e-05,2]
[347709040,1736076637371,-690.62,8.219e-05,2]
[347709041,1736076637381,-500.0,8.219e-05,2]
[347709042,1736076637391,-500.0,8.219e-05,2]
[347709043,1736076637400,-1807.32,8.219e-05,2]
[347709044,1736076637410,-878.23,8.219e-05,2]
[347709045,1736076637419,-1172.47,8.219e-05,2]
[347709046,1736076637429,-520.62,8.219e-05,2]
[347709047,1736076637439,-500.0,8.219e-05,2]
[347709048,1736076637449,-500.0,8.219e-05,2]
[347709049,1736076637459,-1063.47,8.219e-05,2]
[347709050,1736076637468,-932.02,8.219e-05,2]
[347709051,1736076637478,-2594.22,8.219e-05,2]
[347709052,1736076637487,-500.0,8.219e-05,2]
[347709053,1736076637497,-500.0,8.219e-05,2]
[347709054,1736076637511,-500.0,8.219e-05,2]
[347709055,1736076637521,-636.64,8.219e-05,2]
[347709056,1736076637531,-500.0,8.219e-05,2]
[347709057,1736076637541,-650.42,8.219e-05,2]
[347709058,1736076637550,-1337.11,8.219e-05,2]
[347709059,1736076637560,-500.0,8.219e-05,2]
[347709060,1736076637569,-500.0,8.219e-05,2]
[347709061,1736076637579,-151.405091,8.219e-05,2]
[347709062,1736076637588,-500.0,8.219e-05,2]
[347709063,1736076637598,-500.0,8.219e-05,2]
[347709064,1736076637607,-500.0,8.219e-05,2]
[347709065,1736076637617,-500.0,8.219e-05,2]
[347709066,1736076637627,-500.0,8.219e-05,2]
[347709067,1736076637639,-954.75,8.219e-05,2]
[347709068,1736076637649,-500.0,8.219e-05,2]
[347709069,1736076637659,-698.14,8.219e-05,2]
[347709070,1736076637669,-155.442969,8.219e-05,2]
[347709071,1736076637679,-500.0,8.219e-05,2]
[347709072,1736076637688,-500.0,8.219e-05,2]
[347709074,1736076637698,-740.03,8.219e-05,2]
[347709075,1736076637708,-500.0,8.219e-05,2]
[347709077,1736076637718,-500.0,8.219e-05,2]
[347709079,1736076637727,-500.0,8.219e-05,2]
[347709081,1736076637737,-500.0,8.219e-05,2]
[347709082,1736076637747,-684.78,8.219e-05,2]
[347709083,1736076637756,-500.0,8.219e-05,2]
[347709084,1736076637765,-500.0,8.219e-05,2]
[347709085,1736076637775,-500.0,8.219e-05,2]
[347709086,1736076637785,-516.75,8.219e-05,2]
[347709087,1736076637794,-500.0,8.219e-05,2]
[347709088,1736076637804,-500.0,8.219e-05,2]
[347709089,1736076637814,-722.38,8.219e-05,2]
[347709090,1736076637823,-725.43,8.219e-05,2]
[347709091,1736076637833,-500.0,8.219e-05,2]
[347709092,1736076637843,-500.0,8.219e-05,2]
[347709093,1736076637853,-500.0,8.219e-05,2]
[347709094,1736076637863,-656.73,8.219e-05,2]
[347709095,1736076637873,-500.0,8.219e-05,2]
[347709096,1736076637884,-500.0,8.219e-05,2]
[347709097,1736076637894,-1928.88,8.219e-05,2]
[347709098,1736076637903,-500.0,8.219e-05,2]
[347709099,1736076637913,-529.75,8.219e-05,2]
[347709100,1736076637923,-894.28,8.219e-05,2]
[347709101,1736076637933,-500.0,8.219e-05,2]
[347709102,1736076637943,-500.0,8.219e-05,2]
[347709103,1736076637952,-500.0,8.219e-05,2]
[347709104,1736076637962,-159.068643,8.219e-05,2]
[347709105,1736076637972,-542.34,8.219e-05,2]
[347709106,1736076637982,-500.0,8.219e-05,2]
[347709107,1736076637992,-633.28752034,8.219e-05,2]
[347709108,1736076638001,-500.0,8.219e-05,2]
[347709109,1736076638011,-1050.68,8.219e-05,2]
[347709110,1736076638020,-1136.03,8.219e-05,2]
[347709111,1736076638030,-500.0,8.219e-05,2]
[347709112,1736076638040,-785.85,8.219e-05,2]
[347709113,1736076638049,-5182.33,8.219e-05,2]
[347709114,1736076638060,-842.26,8.219e-05,2]
[347709115,1736076638070,-500.0,8.219e-05,2]
[347709116,1736076638079,-567.04,8.219e-05,2]
[347709117,1736076638088,-500.0,8.219e-05,2]
[347709118,1736076638098,-2393.03,8.219e-05,2]
[347709119,1736076638108,-661.2,8.219e-05,2]
[347709120,1736076638117,-500.0,8.219e-05,2]
[347709121,1736076638126,-500.0,8.219e-05,2]
[347709122,1736076638136,-500.0,8.219e-05,2]
[347709123,1736076638146,-3871.94,8.219e-05,2]
[347709124,1736076638156,-820.53,8.219e-05,2]